fUST/lending_fUST_20250709
["ID","MTS","AMOUNT","RATE_DAILY","PERIOD"]
[370520925,1752053460224,-460.0,0.00020547,2]
[370520926,1752053460233,-269.48,0.00020547,2]
[370520927,1752053460242,-460.0,0.00020547,2]
[370520928,1752053460252,-460.0,0.00020547,2]
[370520929,1752053460261,-460.0,0.00020547,2]
[370520930,1752053460270,-460.0,0.00020547,2]
[370520931,1752053460279,-460.0,0.00020547,2]
[370520932,1752053460288,-460.0,0.00020547,2]
[370520933,1752053460298,-460.0,0.00020547,2]
[370520934,1752053460308,-151.0,0.00020547,2]
[370520935,1752053460318,-460.0,0.00020547,2]
[370520936,1752053460328,-460.0,0.00020547,2]
[370520937,1752053460338,-460.0,0.00020547,2]
[370520938,1752053460347,-460.0,0.00020547,2]
[370520939,1752053460356,-460.0,0.00020547,2]
[370520940,1752053460366,-479.04,0.00020547,2]
[370520941,1752053460375,-460.0,0.00020547,2]
[370520942,1752053460384,-1047.54,0.00020547,2]
[370520943,1752053460394,-460.0,0.00020547,2]
[370520944,1752053460403,-460.0,0.00020547,2]
[370520945,1752053460412,-5721.05,0.00020547,2]
[370520946,1752053460420,-460.0,0.00020547,2]
[370520947,1752053460430,-460.0,0.00020547,2]
[370520948,1752053460439,-527.52,0.00020547,2]
[370520949,1752053460448,-2953.21,0.00020547,2]
[370520950,1752053460456,-460.0,0.00020547,2]
[370520951,1752053460466,-460.0,0.00020547,2]
[370520952,1752053460475,-460.0,0.00020547,2]
[370520953,1752053460484,-460.0,0.00020547,2]
[370520954,1752053460493,-460.0,0.00020547,2]
[370520955,1752053460502,-460.0,0.00020547,2]
[370520956,1752053460511,-460.0,0.00020547,2]
[370520957,1752053460520,-2773.67,0.00020547,2]
[370520958,1752053460529,-460.0,0.00020547,2]
[370520959,1752053460538,-195.9,0.00020547,2]
[370520960,1752053460547,-460.0,0.00020547,2]
[370520961,1752053460556,-460.0,0.00020547,2]
[370520962,1752053460570,-3850.31,0.00020547,2]
[370520963,1752053460579,-460.0,0.00020547,2]
[370520964,1752053460588,-460.0,0.00020547,2]
[370520965,1752053460597,-460.0,0.00020547,2]
[370520966,1752053460607,-460.0,0.00020547,2]
[370520967,1752053460616,-460.0,0.00020547,2]
[370520968,1752053460625,-460.0,0.00020547,2]
[370520969,1752053460635,-460.0,0.00020547,2]
[370520970,1752053460644,-460.0,0.00020547,2]
[370520971,1752053460654,-460.0,0.00020547,2]
[370520972,1752053460663,-376.44737349,0.00020547,2]
[370520973,1752053460820,-83.55262651,0.00020547,2]
[370520974,1752053460830,-460.0,0.00020547,2]
[370520975,1752053460839,-460.0,0.00020547,2]
[370520976,1752053460848,-460.0,0.00020547,2]
[370520977,1752053460858,-460.0,0.00020547,2]
[370520978,1752053460868,-1904.62,0.00020547,2]
[370520979,1752053460878,-460.0,0.00020547,2]
[370520980,1752053460888,-460.0,0.00020547,2]
[370520981,1752053460899,-726.27979202,0.00020547,2]
[370520982,1752053460915,-1043.75020798,0.00020547,2]
[370520983,1752053460925,-582.95,0.00020547,2]
[370520984,1752053460934,-543.64901263,0.00020547,2]
[370520985,1752053460944,-460.0,0.00020547,2]
[370520986,1752053460953,-460.0,0.00020547,2]
[370520987,1752053460962,-460.0,0.00020547,2]
[370520988,1752053460971,-3653.46,0.00020547,2]
[370520989,1752053460981,-460.0,0.00020547,2]
[370520990,1752053460990,-460.0,0.00020547,2]
[370520991,1752053460999,-700.36,0.00020547,2]
[370520992,1752053461009,-460.0,0.00020547,2]
[370520993,1752053461018,-1095.96,0.00020547,2]
[370520994,1752053461027,-460.0,0.00020547,2]
[370520995,1752053461037,-785.56,0.00020547,2]
[370520996,1752053461142,-460.0,0.00020547,2]
[370520997,1752053461151,-460.0,0.00020547,2]
[370520998,1752053461160,-460.0,0.00020547,2]
[370520999,1752053461169,-460.0,0.00020547,2]
[370521000,1752053461178,-460.0,0.00020547,2]
[370521001,1752053461187,-151.0,0.00020547,2]
[370521002,1752053461196,-470.28413226,0.00020547,2]
[370521003,1752053461206,-460.0,0.00020547,2]
[370521004,1752053461215,-791.47,0.00020547,2]
[370521005,1752053461224,-460.0,0.00020547,2]
[370521006,1752053461233,-3681.27147139,0.00020547,2]
[370521007,1752053461245,-405.85748006,0.00020547,2]
[370521008,1752053461256,-476.46081799,0.00020547,2]
[370521009,1752053461267,-283.85756455,0.00020547,2]
[370521010,1752053461279,-28.14266601,0.00020547,2]
[370521011,1752053461288,-460.0,0.00020547,2]
[370521012,1752053461298,-460.0,0.00020547,2]
[370521013,1752053461307,-1052.91185052,0.00020547,2]
[370521014,1752053461320,-343.54814948,0.00020547,2]
[370521015,1752053461329,-2150.85,0.00020547,2]
[370521016,1752053461347,-460.0,0.00020547,2]
[370521017,1752053461356,-184.846295,0.00020547,2]
[370521018,1752053461365,-460.0,0.00020547,2]
[370521019,1752053461375,-744.88,0.00020547,2]
[370521020,1752053461386,-460.0,0.00020547,2]
[370521021,1752053461397,-460.0,0.00020547,2]
[370521022,1752053461407,-184.846295,0.00020547,2]
[370521023,1752053461417,-460.0,0.00020547,2]
[370521024,1752053461427,-460.0,0.00020547,2]
[370521025,1752053461436,-460.0,0.00020547,2]
[370521026,1752053461445,-686.5,0.00020547,2]
[370521027,1752053461455,-460.0,0.00020547,2]
[370521028,1752053461463,-460.0,0.00020547,2]
[370521029,1752053461472,-1918.54,0.00020547,2]
[370521030,1752053461481,-460.0,0.00020547,2]
[370521031,1752053461491,-151.0,0.00020547,2]
[370521032,1752053461500,-460.0,0.00020547,2]
[370521033,1752053461509,-460.0,0.00020547,2]
[370521034,1752053461519,-460.0,0.00020547,2]
[370521035,1752053461528,-1339.53,0.00020547,2]
[370521036,1752053461538,-460.0,0.00020547,2]
[370521037,1752053461548,-460.0,0.00020547,2]
[370521038,1752053461559,-161.13354208,0.00020547,2]
[370521039,1752053461570,-460.0,0.00020547,2]
[370521040,1752053461580,-460.0,0.00020547,2]
[370521041,1752053461590,-460.0,0.00020547,2]
[370521042,1752053461599,-506.88,0.00020547,2]
[370521043,1752053461609,-460.0,0.00020547,2]
[370521044,1752053461618,-1500.0,0.00020568,2]
[370521045,1752053461627,-500.0,0.00020574,2]
[370521046,1752053461636,-161.305803,0.00020592,2]
[370521047,1752053461645,-151.0,0.000206,2]
[370521048,1752053461655,-151.0,0.000206,2]
[370521049,1752053461665,-2662.28,0.000206,2]
[370521050,1752053461674,-690.642,0.0002062,2]
[370521051,1752053461684,-300.0,0.0002062,2]
[370521052,1752053461693,-300.0,0.0002062,2]
[370521053,1752053461703,-300.0,0.0002062,2]
[370521054,1752053461712,-300.0,0.0002062,2]
[370521055,1752053461721,-300.0,0.0002062,2]
[370521056,1752053461730,-300.0,0.0002062,2]
[370521057,1752053461740,-300.0,0.0002062,2]
[370521058,1752053461749,-300.0,0.0002062,2]
[370521059,1752053461758,-300.0,0.0002062,2]
[370521060,1752053461767,-300.0,0.0002062,2]
[370521061,1752053461777,-25000.0,0.0002062,2]
[370521062,1752053461786,-300.0,0.0002062,2]
[370521063,1752053461795,-300.0,0.0002062,2]
[370521064,1752053461804,-300.0,0.0002062,2]
[370521065,1752053461813,-13228.23934115,0.0002062,2]
[370521066,1752053461822,-300.0,0.0002062,2]
[370521067,1752053461832,-300.0,0.0002062,2]
[370521068,1752053461841,-500.0,0.0002062,2]
[370521069,1752053461850,-300.0,0.0002062,2]
[370521070,1752053461859,-300.0,0.0002062,2]
[370521071,1752053461868,-500.0,0.0002062,2]
[370521072,1752053461879,-300.0,0.0002062,2]
[370521073,1752053461888,-300.0,0.0002062,2]
[370521074,1752053461897,-165.0,0.0002062,2]
[370521075,1752053461907,-500.0,0.0002062,2]
[370521076,1752053461916,-300.0,0.0002062,2]
[370521077,1752053461925,-500.0,0.0002062,2]
[370521078,1752053461934,-300.0,0.0002062,2]
[370521079,1752053461943,-300.0,0.0002062,2]
[370521080,1752053461954,-300.0,0.0002062,2]
[370521081,1752053461963,-500.0,0.0002062,2]
[370521082,1752053461972,-320.64489862,0.0002062,2]
[370521083,1752053461982,-300.0,0.0002062,2]
[370521084,1752053461991,-500.0,0.0002062,2]
[370521085,1752053462000,-207.4,0.0002062,2]
[370521086,1752053462009,-500.0,0.0002062,2]
[370521087,1752053462018,-500.0,0.0002062,2]
[370521088,1752053462027,-300.0,0.0002062,2]
[370521089,1752053462037,-500.0,0.0002062,2]
[370521090,1752053462046,-300.0,0.0002062,2]
[370521091,1752053462056,-300.0,0.0002062,2]
[370521092,1752053462065,-500.0,0.0002062,2]
[370521093,1752053462074,-300.0,0.0002062,2]
[370521094,1752053462083,-500.0,0.0002062,2]
[370521095,1752053462092,-300.0,0.0002062,2]
[370521096,1752053462101,-300.0,0.0002062,2]
[370521097,1752053462112,-300.0,0.0002062,2]
[370521098,1752053462121,-300.0,0.0002062,2]
[370521099,1752053462130,-300.0,0.0002062,2]
[370521100,1752053462139,-300.0,0.0002062,2]
[370521101,1752053462149,-300.0,0.0002062,2]
[370521102,1752053462158,-300.0,0.0002062,2]
[370521103,1752053462167,-316.0,0.0002062,2]
[370521104,1752053462176,-716.195754,0.00020675,2]
[370521105,1752053462185,-151.0,0.00020698,2]
[370521106,1752053462194,-151.291787,0.00020698,2]
[370521107,1752053462203,-161.305803,0.00020698,2]
[370521108,1752053462213,-168.66,0.00020703,3]
[370521109,1752053462221,-22946.66876487,0.0002071,2]
[370521110,1752053462231,-742.6949969,0.0002073,2]
[370521111,1752053462240,-480.40569578,0.00020785,2]
[370521112,1752053462249,-161.305803,0.00020805,2]
[370521113,1752053462258,-2000.0,0.00020816,2]
[370521114,1752053462267,-1000.0,0.00020816,2]
[370521115,1752053462276,-536.94146932,0.00020816,2]
[370521116,1752053462285,-2000.0,0.00020816,2]
[370521117,1752053462294,-460.0,0.00020821,2]
[370521118,1752053462303,-460.0,0.00020821,2]
[370521119,1752053462313,-460.0,0.00020821,2]
[370521120,1752053462322,-460.0,0.00020821,2]
[370521121,1752053462331,-460.0,0.00020821,2]
[370521122,1752053462341,-460.0,0.00020821,2]
[370521123,1752053462350,-460.0,0.00020821,2]
[370521124,1752053462359,-460.0,0.00020821,2]
[370521125,1752053462368,-460.0,0.00020821,2]
[370521126,1752053462377,-460.0,0.00020821,2]
[370521127,1752053462387,-460.0,0.00020821,2]
[370521128,1752053462396,-460.0,0.00020821,2]
[370521129,1752053462405,-460.0,0.00020821,2]
[370521130,1752053462414,-460.0,0.00020821,2]
[370521131,1752053462424,-460.0,0.00020821,2]
[370521132,1752053462433,-190.1095679,0.00020821,2]
[370521133,1752053462443,-182.38672069,0.00020821,2]
[370521134,1752053462451,-460.0,0.00020821,2]
[370521135,1752053462460,-460.0,0.00020821,2]
[370521136,1752053462469,-460.0,0.00020821,2]
[370521137,1752053462478,-460.0,0.00020821,2]
[370521138,1752053462487,-460.0,0.00020821,2]
[370521139,1752053462495,-460.0,0.00020821,2]
[370521140,1752053462504,-460.0,0.00020821,2]
[370521141,1752053462513,-460.0,0.00020821,2]
[370521142,1752053462522,-460.0,0.00020821,2]
[370521143,1752053462530,-424.86153234,0.00020821,2]
[370521144,1752053462540,-460.0,0.00020821,2]
[370521145,1752053462548,-460.0,0.00020821,2]
[370521146,1752053462561,-460.0,0.00020821,2]
[370521147,1752053462570,-460.0,0.00020821,2]
[370521148,1752053462578,-233.99095347,0.00020821,2]
[370521149,1752053462587,-460.0,0.00020821,2]
[370521150,1752053462597,-460.0,0.00020821,2]
[370521151,1752053462606,-460.0,0.00020821,2]
[370521152,1752053462615,-285.96749015,0.00020821,2]
[370521153,1752053462624,-460.0,0.00020821,2]
[370521154,1752053462633,-460.0,0.00020821,2]
[370521155,1752053462642,-458.0,0.00020821,2]
[370521156,1752053462652,-460.0,0.00020821,2]
[370521157,1752053462661,-460.0,0.00020821,2]
[370521158,1752053462670,-460.0,0.00020821,2]
[370521159,1752053462679,-460.0,0.00020821,2]
[370521160,1752053462688,-460.0,0.00020821,2]
[370521161,1752053462697,-460.0,0.00020821,2]
[370521162,1752053462706,-460.0,0.00020821,2]
[370521163,1752053462803,-460.0,0.00020821,2]
[370521164,1752053462814,-460.0,0.00020821,2]
[370521165,1752053462824,-190.98312117,0.00020821,2]
[370521166,1752053462833,-460.0,0.00020821,2]
[370521167,1752053462842,-460.0,0.00020821,2]
[370521168,1752053462851,-324.73873858,0.00020821,2]
[370521169,1752053462861,-673.78,0.00020821,2]
[370521170,1752053462871,-558.73778725,0.00020821,2]
[370521171,1752053462880,-460.0,0.00020821,2]
[370521172,1752053462889,-460.0,0.00020821,2]
[370521173,1752053462898,-460.0,0.00020821,2]
[370521174,1752053462907,-460.0,0.00020821,2]
[370521175,1752053462917,-460.0,0.00020821,2]
[370521176,1752053462927,-460.0,0.00020821,2]
[370521177,1752053462936,-460.0,0.00020821,2]
[370521178,1752053462945,-751.34,0.00020821,2]
[370521179,1752053462955,-460.0,0.00020821,2]
[370521180,1752053462965,-151.0,0.00020821,2]
[370521181,1752053462974,-460.0,0.00020821,2]
[370521182,1752053462984,-151.352149,0.00020821,2]
[370521183,1752053462994,-460.0,0.00020821,2]
[370521184,1752053463003,-151.0,0.00020821,2]
[370521185,1752053463012,-460.0,0.00020821,2]
[370521186,1752053463021,-151.0,0.00020821,2]
[370521187,1752053463031,-151.0,0.00020821,2]
[370521188,1752053463040,-460.0,0.00020821,2]
[370521189,1752053463050,-460.0,0.00020821,2]
[370521190,1752053463060,-460.0,0.00020821,2]
[370521191,1752053463069,-151.299347,0.00020821,2]
[370521192,1752053463078,-460.0,0.00020821,2]
[370521193,1752053463088,-460.0,0.00020821,2]
[370521194,1752053463097,-460.0,0.00020821,2]
[370521195,1752053463106,-159.711564,0.00020821,2]
[370521196,1752053463115,-535.60467571,0.00020821,2]
[370521197,1752053463124,-460.0,0.00020821,2]
[370521198,1752053463133,-511.57,0.00020821,2]
[370521199,1752053463143,-460.0,0.00020821,2]
[370521200,1752053463152,-460.0,0.00020821,2]
[370521201,1752053463161,-460.0,0.00020821,2]
[370521202,1752053463171,-151.0,0.00020821,2]
[370521203,1752053463181,-460.0,0.00020821,2]
[370521204,1752053463190,-460.0,0.00020821,2]
[370521205,1752053463199,-460.0,0.00020821,2]
[370521206,1752053463208,-151.0,0.00020821,2]
[370521207,1752053463218,-460.0,0.00020821,2]
[370521208,1752053463227,-151.0,0.00020821,2]
[370521209,1752053463236,-460.0,0.00020821,2]
[370521210,1752053463246,-151.0,0.00020821,2]
[370521211,1752053463255,-237.75822802,0.00020821,2]
[370521212,1752053463264,-151.0,0.00020821,2]
[370521213,1752053463274,-294.277076,0.00020821,2]
[370521214,1752053463284,-460.0,0.00020821,2]
[370521215,1752053463293,-460.0,0.00020821,2]
[370521216,1752053463303,-460.0,0.00020821,2]
[370521217,1752053463313,-758.68,0.00020821,2]
[370521218,1752053463323,-460.0,0.00020821,2]
[370521219,1752053463332,-279.852506,0.00020821,2]
[370521220,1752053463343,-1536.75,0.00020821,2]
[370521221,1752053463352,-381.04,0.00020821,2]
[370521222,1752053463363,-682.21,0.00020821,2]
[370521223,1752053463373,-406.60831122,0.00020821,2]
[370521224,1752053463382,-460.0,0.00020821,2]
[370521225,1752053463392,-460.0,0.00020821,2]
[370521226,1752053463402,-476.93,0.00020821,2]
[370521227,1752053463411,-3196.85,0.00020821,2]
[370521228,1752053463421,-739.83,0.00020821,2]
[370521229,1752053463431,-2800.45,0.00020821,2]
[370521230,1752053463440,-460.0,0.00020821,2]
[370521231,1752053463450,-460.0,0.00020821,2]
[370521232,1752053463459,-460.0,0.00020821,2]
[370521233,1752053463469,-460.0,0.00020821,2]
[370521234,1752053463479,-460.0,0.00020821,2]
[370521235,1752053463488,-460.0,0.00020821,2]
[370521236,1752053463498,-460.0,0.00020821,2]
[370521237,1752053463508,-546.5,0.00020821,2]
[370521238,1752053463518,-460.0,0.00020821,2]
[370521239,1752053463527,-460.0,0.00020821,2]
[370521240,1752053463538,-460.0,0.00020821,2]
[370521241,1752053463548,-460.0,0.00020821,2]
[370521242,1752053463559,-460.0,0.00020821,2]
[370521243,1752053463570,-1047.54,0.00020821,2]
[370521244,1752053463579,-460.0,0.00020821,2]
[370521245,1752053463589,-460.0,0.00020821,2]
[370521246,1752053463598,-5721.05,0.00020821,2]
[370521247,1752053463608,-460.0,0.00020821,2]
[370521248,1752053463617,-527.52,0.00020821,2]
[370521249,1752053463627,-2953.21,0.00020821,2]
[370521250,1752053463637,-460.0,0.00020821,2]
[370521251,1752053463646,-337.68,0.00020821,2]
[370521252,1752053463656,-496.95716289,0.00020821,2]
[370521253,1752053463666,-460.0,0.00020821,2]
[370521254,1752053463676,-460.0,0.00020821,2]
[370521255,1752053463685,-460.0,0.00020821,2]
[370521256,1752053463695,-151.0,0.00020821,2]
[370521257,1752053463704,-268.823423,0.00020821,2]
[370521258,1752053463714,-2773.67,0.00020821,2]
[370521259,1752053463724,-268.823423,0.00020821,2]
[370521260,1752053463733,-219.73732468,0.00020821,2]
[370521261,1752053463742,-460.0,0.00020821,2]
[370521262,1752053463753,-460.0,0.00020821,2]
[370521263,1752053463762,-3850.31,0.00020821,2]
[370521264,1752053463771,-460.0,0.00020821,2]
[370521265,1752053463780,-460.0,0.00020821,2]
[370521266,1752053463790,-460.0,0.00020821,2]
[370521267,1752053463799,-460.0,0.00020821,2]
[370521268,1752053463809,-460.0,0.00020821,2]
[370521269,1752053463818,-460.0,0.00020821,2]
[370521270,1752053463828,-462.68222804,0.00020821,2]
[370521271,1752053463837,-460.0,0.00020821,2]
[370521272,1752053463847,-460.0,0.00020821,2]
[370521273,1752053463856,-158.64,0.00020821,2]
[370521274,1752053463865,-460.0,0.00020821,2]
[370521275,1752053463875,-460.0,0.00020821,2]
[370521276,1752053463884,-460.0,0.00020821,2]
[370521277,1752053463894,-1904.62,0.00020821,2]
[370521278,1752053463903,-460.0,0.00020821,2]
[370521279,1752053463912,-460.0,0.00020821,2]
[370521280,1752053463921,-1770.03,0.00020821,2]
[370521281,1752053463931,-582.95,0.00020821,2]
[370521282,1752053463940,-460.0,0.00020821,2]
[370521283,1752053463950,-460.0,0.00020821,2]
[370521284,1752053463960,-460.0,0.00020821,2]
[370521285,1752053463969,-3653.46,0.00020821,2]
[370521286,1752053463979,-460.0,0.00020821,2]
[370521287,1752053463990,-700.36,0.00020821,2]
[370521288,1752053464002,-460.0,0.00020821,2]
[370521289,1752053464012,-1095.96,0.00020821,2]
[370521290,1752053464022,-460.0,0.00020821,2]
[370521291,1752053464032,-785.56,0.00020821,2]
[370521292,1752053464041,-151.0,0.00020821,2]
[370521293,1752053464051,-460.0,0.00020821,2]
[370521294,1752053464061,-151.0,0.00020821,2]
[370521295,1752053464070,-460.0,0.00020821,2]
[370521296,1752053464080,-151.0,0.00020821,2]
[370521297,1752053464090,-460.0,0.00020821,2]
[370521298,1752053464099,-460.0,0.00020821,2]
[370521299,1752053464108,-460.0,0.00020821,2]
[370521300,1752053464118,-791.47,0.00020821,2]
[370521301,1752053464127,-460.0,0.00020821,2]
[370521302,1752053464137,-4875.59,0.00020821,2]
[370521303,1752053464147,-460.0,0.00020821,2]
[370521304,1752053464157,-460.0,0.00020821,2]
[370521305,1752053464166,-1396.46,0.00020821,2]
[370521306,1752053464175,-2150.85,0.00020821,2]
[370521307,1752053464185,-460.0,0.00020821,2]
[370521308,1752053464194,-460.0,0.00020821,2]
[370521309,1752053464203,-197.880168,0.00020821,2]
[370521310,1752053464213,-744.88,0.00020821,2]
[370521311,1752053464223,-460.0,0.00020821,2]
[370521312,1752053464232,-197.880168,0.00020821,2]
[370521313,1752053464242,-460.0,0.00020821,2]
[370521314,1752053464251,-460.0,0.00020821,2]
[370521315,1752053464260,-460.0,0.00020821,2]
[370521316,1752053464269,-460.0,0.00020821,2]
[370521317,1752053464366,-686.5,0.00020821,2]
[370521318,1752053464376,-460.0,0.00020821,2]
[370521319,1752053464386,-216.60441195,0.00020821,2]
[370521320,1752053464396,-1918.54,0.00020821,2]
[370521321,1752053464405,-463.38,0.00020821,2]
[370521322,1752053464415,-460.0,0.00020821,2]
[370521323,1752053464424,-460.0,0.00020821,2]
[370521324,1752053464434,-460.0,0.00020821,2]
[370521325,1752053464443,-1339.53,0.00020821,2]
[370521326,1752053464452,-174.864023,0.00020821,2]
[370521327,1752053464461,-460.0,0.00020821,2]
[370521328,1752053464470,-174.864023,0.00020821,2]
[370521329,1752053464480,-151.0,0.00020821,2]
[370521330,1752053464489,-581.2,0.00020821,2]
[370521331,1752053464499,-460.0,0.00020821,2]
[370521332,1752053464509,-151.0,0.00020821,2]
[370521333,1752053464518,-460.0,0.00020821,2]
[370521334,1752053464528,-506.88,0.00020821,2]
[370521335,1752053464537,-460.0,0.00020821,2]
[370521336,1752053464547,-291.99,0.00020821,2]
[370521337,1752053464558,-500.0,0.00020824,2]
[370521338,1752053464569,-500.70927642,0.00020824,2]
[370521339,1752053464579,-474.822,0.00020857,2]
[370521340,1752053464588,-1500.0,0.00020868,2]
[370521341,1752053464599,-1500.0,0.00020868,2]
[370521342,1752053464608,-1500.0,0.00020868,2]
[370521343,1752053464619,-500.0,0.00020868,2]
[370521344,1752053464630,-560.0,0.00020893,2]
[370521345,1752053464640,-420.0,0.00020898,2]
[370521346,1752053464650,-992.56807068,0.000209,4]
[370521347,1752053464659,-161.305803,0.00020912,2]
[370521348,1752053464668,-151.0,0.00020965,2]
[370521349,1752053464676,-189.64653,0.00020965,2]
[370521350,1752053464685,-151.0,0.00020965,2]
[370521351,1752053464695,-151.0,0.00020965,2]
[370521352,1752053464704,-151.0,0.00020965,2]
[370521353,1752053464713,-267.825352,0.00020965,2]
[370521354,1752053464722,-151.0,0.00020965,2]
[370521355,1752053464732,-151.0,0.00020965,2]
[370521356,1752053464741,-151.0,0.00020965,2]
[370521357,1752053464751,-151.0,0.00020965,2]
[370521358,1752053464760,-976.561377,0.00020965,2]
[370521359,1752053464770,-976.561377,0.00020965,2]
[370521360,1752053464779,-735.88372972,0.00020965,2]
[370521361,1752053464789,-1000.0,0.00020965,2]
[370521362,1752053464798,-2973.65431429,0.00020995,2]
[370521363,1752053464808,-3656.89065909,0.00021,2]
[370521364,1752053464817,-161.305803,0.00021018,2]
[370521365,1752053464826,-992.56807043,0.00021072,4]
[370521366,1752053464836,-460.0,0.00021095,2]
[370521367,1752053464845,-460.0,0.00021095,2]
[370521368,1752053464854,-460.0,0.00021095,2]
[370521369,1752053464863,-460.0,0.00021095,2]
[370521370,1752053464872,-460.0,0.00021095,2]
[370521371,1752053464881,-564.65581784,0.00021095,2]
[370521372,1752053464890,-566.52,0.00021095,2]
[370521373,1752053464900,-460.0,0.00021095,2]
[370521374,1752053464909,-460.0,0.00021095,2]
[370521375,1752053464918,-460.0,0.00021095,2]
[370521376,1752053464928,-460.0,0.00021095,2]
[370521377,1752053464938,-460.0,0.00021095,2]
[370521378,1752053464947,-472.2556711,0.00021095,2]
[370521379,1752053464956,-460.0,0.00021095,2]
[370521380,1752053464966,-460.0,0.00021095,2]
[370521381,1752053464975,-460.0,0.00021095,2]
[370521382,1752053464985,-460.0,0.00021095,2]
[370521383,1752053464994,-460.0,0.00021095,2]
[370521384,1752053465004,-460.0,0.00021095,2]
[370521385,1752053465013,-440.03700064,0.00021095,2]
[370521386,1752053465022,-460.0,0.00021095,2]
[370521387,1752053465031,-460.0,0.00021095,2]
[370521388,1752053465040,-317.79427988,0.00021095,2]
[370521389,1752053465051,-460.0,0.00021095,2]
[370521390,1752053465060,-460.0,0.00021095,2]
[370521391,1752053465069,-460.0,0.00021095,2]
[370521392,1752053465078,-460.0,0.00021095,2]
[370521393,1752053465087,-460.0,0.00021095,2]
[370521394,1752053465096,-460.0,0.00021095,2]
[370521395,1752053465106,-460.0,0.00021095,2]
[370521396,1752053465115,-151.0,0.00021095,2]
[370521397,1752053465124,-460.0,0.00021095,2]
[370521398,1752053465133,-460.0,0.00021095,2]
[370521399,1752053465143,-460.0,0.00021095,2]
[370521400,1752053465153,-460.0,0.00021095,2]
[370521401,1752053465162,-249.097854,0.00021095,2]
[370521402,1752053465172,-460.0,0.00021095,2]
[370521403,1752053465182,-460.0,0.00021095,2]
[370521404,1752053465192,-460.0,0.00021095,2]
[370521405,1752053465203,-152.426959,0.00021095,2]
[370521406,1752053465212,-460.0,0.00021095,2]
[370521407,1752053465221,-194.2,0.00021095,2]
[370521408,1752053465230,-304.62503872,0.00021095,2]
[370521409,1752053465239,-460.0,0.00021095,2]
[370521410,1752053465248,-673.78,0.00021095,2]
[370521411,1752053465258,-460.0,0.00021095,2]
[370521412,1752053465267,-460.0,0.00021095,2]
[370521413,1752053465278,-460.0,0.00021095,2]
[370521414,1752053465289,-378.55,0.00021095,2]
[370521415,1752053465299,-460.0,0.00021095,2]
[370521416,1752053465309,-460.0,0.00021095,2]
[370521417,1752053465318,-751.34,0.00021095,2]
[370521418,1752053465328,-460.0,0.00021095,2]
[370521419,1752053465339,-460.0,0.00021095,2]
[370521420,1752053465349,-460.0,0.00021095,2]
[370521421,1752053465358,-528.92,0.00021095,2]
[370521422,1752053465368,-460.0,0.00021095,2]
[370521423,1752053465379,-460.0,0.00021095,2]
[370521424,1752053465390,-460.0,0.00021095,2]